bitfinex-derivatives/quotes_SOLF0:USTF0_20260213
["timestamp","ask_amount","ask_price","bid_price","bid_amount"]
[1771001156319,11.9468185,84.522,84.453,12.40846336]
[1771001157424,10.6557,84.508,84.453,12.40846336]
[1771001157627,11.9468185,84.508,84.453,12.40846336]
[1771001158729,10.6567,84.501,84.453,12.40846336]
[1771001158916,11.9468185,84.508,84.453,12.40846336]
[1771001159321,10.6585,84.494,84.453,12.40846336]
[1771001159529,11.9468185,84.508,84.453,12.40846336]
[1771001160527,10.6585,84.495,84.453,12.40846336]
[1771001161332,8.65106183,84.53,84.457,11.95582965]
[1771001161333,12.58137371,84.525,84.457,11.95582965]
[1771001161923,12.58137371,84.525,84.44,11.95582965]
[1771001162125,12.58137371,84.525,84.41,8.65106183]
[1771001162126,12.58137371,84.499,84.403,11.95582965]
[1771001162322,12.58137371,84.497,84.403,11.95582965]
[1771001162733,12.58137371,84.497,84.391,13.0]
[1771001162734,8.65106183,84.48,84.421,11.95582965]
[1771001163232,12.58137371,84.497,84.434,10.666]
[1771001163233,10.66,84.483,84.434,10.666]
[1771001163432,10.66,84.483,84.435,11.95582965]
[1771001164234,10.66,84.483,84.437,11.95582965]
[1771001164728,10.6589,84.492,84.441,10.6652]
[1771001165033,10.6589,84.492,84.437,11.95582965]
[1771001165232,153.0,84.534,84.43,8.65106183]
[1771001165233,12.58137371,84.533,84.456,11.95582965]
[1771001165434,8.65106183,84.54,84.456,11.95582965]
[1771001165732,12.58137371,84.55,84.456,11.95582965]
[1771001166034,10.6543,84.528,84.48,11.95582965]
[1771001166332,12.58137371,84.539,84.48,11.95582965]
[1771001166539,10.6528,84.54,84.484,11.95582965]
[1771001166731,12.58137371,84.556,84.484,11.95582965]
[1771001167733,10.6538,84.532,84.484,11.95582965]
[1771001168232,12.58137371,84.539,84.484,11.95582965]
[1771001168434,10.6548,84.524,84.484,11.95582965]
[1771001168635,10.6548,84.524,84.468,10.6617]
[1771001168636,12.58137371,84.539,84.468,11.95582965]
[1771001168838,8.64853249,84.53,84.468,11.95582965]
[1771001169141,12.58137371,84.529,84.468,11.95582965]
[1771001169335,130.0,84.544,84.469,11.95582965]
[1771001169542,12.58137371,84.529,84.469,11.95582965]
[1771001169738,12.58137371,84.529,84.42,8.64853249]
[1771001169739,12.58137371,84.529,84.442,11.95582965]
[1771001169939,10.6569,84.507,84.445,11.95582965]
[1771001170639,23.23827371,84.507,84.445,11.95582965]
[1771001170828,10.6573,84.504,84.445,11.95582965]
[1771001171027,12.58137371,84.503,84.435,10.6659]
[1771001171435,12.58137371,84.503,84.435,22.62172965]
[1771001171741,10.6583,84.497,84.435,22.62172965]
[1771001172641,10.6583,84.497,84.438,11.95582965]
[1771001173040,10.6583,84.497,84.44,10.6652]
[1771001173235,10.6583,84.497,84.44,22.62102965]
[1771001173434,10.6591,84.49,84.44,22.62102965]
[1771001173835,10.6591,84.49,84.44,11.95582965]
[1771001174238,19.30763249,84.49,84.44,11.95582965]
[1771001174436,10.6599,84.483,84.44,11.95582965]
[1771001174632,8.64853249,84.49,84.4,8.64853249]
[1771001174633,12.58137371,84.488,84.424,10.6673]
[1771001174845,12.58137371,84.488,84.4,8.64853249]
[1771001174846,12.58137371,84.488,84.425,11.95582965]
[1771001175245,8.64853249,84.49,84.425,11.95582965]
[1771001175246,23.24217371,84.476,84.425,11.95582965]
[1771001175548,8.64853249,84.47,84.418,10.6681]
[1771001176241,12.58137371,84.462,84.409,11.95582965]
[1771001176438,12.58137371,84.462,84.394,11.95582965]
[1771001177242,8.64853249,84.47,84.394,11.95582965]
[1771001177648,10.6607,84.477,84.426,11.95582965]
[1771001177848,12.58137371,84.479,84.426,11.95582965]
[1771001178248,8.64853249,84.49,84.435,11.95582965]
[1771001178650,10.6605,84.479,84.435,11.95582965]
[1771001178848,10.6605,84.479,84.429,10.6667]
[1771001179844,10.6614,84.471,84.421,22.62342965]
[1771001180145,12.58137371,84.469,84.401,11.95582965]
[1771001180549,12.58137371,84.469,84.386,462.82971075]
[1771001180550,8.64853249,84.47,84.412,11.95582965]
[1771001181051,12.58137371,84.469,84.412,11.95582965]
[1771001181746,10.6633,84.457,84.412,11.95582965]
[1771001182243,12.58137371,84.469,84.412,11.95582965]
[1771001183753,142.6,84.501,84.421,11.95582965]
[1771001183754,8.64853249,84.49,84.421,11.95582965]
[1771001184140,10.6609,84.475,84.426,10.6671]
[1771001184338,10.6609,84.475,84.427,11.95582965]
[1771001184546,12.58137371,84.489,84.427,11.95582965]
[1771001184853,10.6611,84.474,84.429,11.95582965]
[1771001185746,10.6619,84.467,84.429,11.95582965]
[1771001186350,10.6619,84.467,84.417,10.6682]
[1771001186655,8.64853249,84.47,84.417,10.6682]
[1771001186952,12.58137371,84.469,84.417,10.6682]
[1771001187346,12.58137371,84.469,84.417,22.62402965]
[1771001187548,8.64853249,84.47,84.424,11.95582965]
[1771001188755,8.64853249,84.47,84.425,10.6671]
[1771001189749,10.662,84.467,84.424,11.95582965]
[1771001189950,10.662,84.467,84.418,10.6681]
[1771001190346,23.24337371,84.467,84.418,10.6681]
[1771001190556,10.6623,84.464,84.418,10.6681]
[1771001191059,10.6623,84.464,84.406,11.95582965]
[1771001191060,11.57695556,84.463,84.409,10.6692]
[1771001191753,11.57695556,84.463,84.406,11.95582965]
[1771001192353,11.57695556,84.463,84.417,10.6681]
[1771001192655,11.57695556,84.463,84.406,11.95582965]
[1771001192960,10.6634,84.456,84.413,10.6687]
[1771001193148,11.57695556,84.455,84.413,10.6687]
[1771001193353,11.57695556,84.455,84.406,11.95582965]
[1771001194250,10.6647,84.445,84.405,10.6697]
[1771001194453,11.57695556,84.444,84.393,250.49482467]
[1771001194756,11.57695556,84.425,84.375,10.6734]
[1771001194950,11.57695556,84.425,84.359,12.32531475]
[1771001195551,11.57695556,84.444,84.382,12.32531475]
[1771001195962,11.57695556,84.469,84.382,12.32531475]
[1771001196860,10.6644,84.448,84.403,10.67]
[1771001197360,12.24633288,84.453,84.409,10.6691]
[1771001198255,12.24633288,84.453,84.403,11.62352593]
[1771001198256,10.664,84.451,84.403,11.62352593]
[1771001198964,12.24633288,84.451,84.395,10.671]
[1771001199557,12.24633288,84.439,84.395,10.671]
[1771001200964,12.24633288,84.439,84.401,10.6702]
[1771001201162,12.24633288,84.456,84.401,10.6702]
[1771001201562,10.6645,84.447,84.401,10.6702]
[1771001201762,12.24633288,84.456,84.393,10.6712]
[1771001202063,12.24633288,84.456,84.385,11.62352593]
[1771001202064,12.24633288,84.439,84.369,11.62352593]
[1771001202264,12.24633288,84.435,84.384,10.6723]
[1771001203266,10.6674,84.424,84.371,10.674]
[1771001203566,10.6674,84.424,84.371,22.29752593]
[1771001203766,10.6711,84.395,84.354,11.62352593]
[1771001203960,8.64853249,84.42,84.354,11.62352593]
[1771001204155,12.24633288,84.422,84.354,11.62352593]
[1771001204355,12.24633288,84.44,84.375,11.62352593]
[1771001205773,10.6662,84.434,84.385,10.6722]
[1771001206366,10.6662,84.434,84.375,11.62352593]
[1771001206562,10.6662,84.434,84.384,10.6724]
[1771001206766,10.6671,84.427,84.384,10.6724]
[1771001207268,10.6673,84.425,84.375,22.29702593]
[1771001207467,12.24633288,84.429,84.375,11.62352593]
[1771001208662,12.24633288,84.417,84.356,11.62352593]
[1771001209669,12.24633288,84.417,84.36,10.6754]
[1771001209963,8.64853249,84.41,84.36,10.6754]
[1771001210164,10.6696,84.407,84.356,11.62352593]
[1771001210370,12.24633288,84.406,84.352,10.6764]
[1771001210765,12.24633288,84.404,84.359,10.6755]
[1771001211165,12.24633288,84.404,84.34,11.62352593]
[1771001212369,10.671,84.396,84.34,11.62352593]
[1771001212564,12.24633288,84.395,84.34,11.62352593]
[1771001213359,10.6725,84.384,84.34,11.62352593]
[1771001213578,12.24633288,84.383,84.323,11.62352593]
[1771001213761,12.24633288,84.369,84.307,11.62352593]
[1771001214371,12.24633288,84.386,84.307,11.62352593]
[1771001215669,10.674,84.372,84.317,11.62352593]
[1771001215860,12.24633288,84.386,84.317,11.62352593]
[1771001216458,10.6728,84.381,84.317,22.30432593]
[1771001216661,10.6728,84.381,84.318,11.62352593]
[1771001217270,10.6728,84.381,84.32,10.6805]
[1771001217471,12.24633288,84.375,84.321,11.62352593]
[1771001217966,12.24633288,84.366,84.305,22.30592593]
[1771001218171,12.24633288,84.366,84.305,11.62352593]
[1771001219162,10.6764,84.353,84.305,11.62352593]
[1771001220066,10.6754,84.361,84.307,11.62352593]
[1771001220675,10.6744,84.369,84.316,11.62352593]
[1771001220968,11.78730507,84.383,84.316,11.62352593]
[1771001221170,11.78730507,84.383,84.324,23.09914198]
[1771001221775,10.6729,84.381,84.327,10.6795]
[1771001221976,11.78730507,84.399,84.328,12.41924198]
[1771001222270,11.78730507,84.399,84.31,8.64853249]
[1771001222271,10.6709,84.397,84.346,10.6771]
[1771001222473,10.6709,84.397,84.31,8.64853249]
[1771001222474,11.78730507,84.418,84.347,12.41924198]
[1771001223075,11.78730507,84.408,84.356,10.6759]
[1771001223378,11.78730507,84.408,84.347,12.41924198]
[1771001224564,10.6698,84.405,84.354,12.41924198]
[1771001224972,10.6698,84.405,84.33,8.64853249]
[1771001224973,11.78730507,84.424,84.364,12.41924198]
[1771001225178,8.64853249,84.43,84.364,12.41924198]
[1771001226783,11.78730507,84.44,84.377,12.41924198]
[1771001227372,11.78730507,84.44,84.379,10.673]
[1771001228074,11.78730507,84.44,84.377,12.41924198]
[1771001228272,11.78730507,84.44,84.334,14.22772839]
[1771001228273,11.78730507,84.429,84.37,12.41924198]
[1771001228672,10.6681,84.418,84.371,10.674]
[1771001228976,11.78730507,84.429,84.372,12.41924198]
[1771001230079,10.668,84.419,84.372,12.41924198]
[1771001231781,11.78730507,84.429,84.36,10.6754]
[1771001232080,11.78730507,84.419,84.356,12.41924198]
[1771001232270,22.45640507,84.411,84.356,12.41924198]
[1771001232475,11.78730507,84.41,84.356,12.41924198]
[1771001232676,11.78730507,84.429,84.356,12.41924198]
[1771001233482,10.6685,84.416,84.356,12.41924198]
[1771001233680,11.78730507,84.409,84.331,12.41924198]
[1771001234085,10.6695,84.408,84.343,12.41924198]
[1771001234984,10.6684,84.416,84.354,12.41924198]
[1771001235181,11.78730507,84.426,84.354,12.41924198]
[1771001235588,11.78730507,84.426,84.331,13.0]
[1771001235589,10.6681,84.419,84.365,12.41924198]
[1771001236793,10.6681,84.419,84.367,12.41924198]
[1771001237190,10.669,84.412,84.367,12.41924198]
[1771001237795,8.66736452,84.43,84.367,12.41924198]
[1771001237796,10.6706,84.399,84.367,12.41924198]
[1771001238090,10.6706,84.399,84.339,12.41924198]
[1771001238286,11.78730507,84.411,84.357,12.41924198]
[1771001238486,11.78730507,84.429,84.357,12.41924198]
[1771001238994,10.6704,84.4,84.357,12.41924198]
[1771001239290,11.78730507,84.414,84.357,12.41924198]
[1771001239484,10.6728,84.382,84.341,12.41924198]
[1771001239684,11.78730507,84.409,84.341,12.41924198]
[1771001240591,10.6725,84.384,84.341,12.41924198]
[1771001241594,11.78730507,84.411,84.33,12.41924198]
[1771001241896,11.78730507,84.419,84.335,12.41924198]
[1771001242793,11.78730507,84.39,84.335,12.41924198]
[1771001243101,8.66736452,84.38,84.335,12.41924198]
[1771001243289,11.78730507,84.379,84.311,12.41924198]
[1771001244188,11.78730507,84.37,84.311,12.41924198]
[1771001244895,8.66736452,84.36,84.311,12.41924198]
[1771001245094,20.45466959,84.36,84.311,12.41924198]
[1771001245987,10.6758,84.357,84.311,12.41924198]
[1771001246994,10.6756,84.359,84.311,12.41924198]
[1771001247299,11.78730507,84.36,84.311,12.41924198]
[1771001247501,22.46290507,84.36,84.311,12.41924198]
[1771001248594,10.6768,84.349,84.311,12.41924198]
[1771001248800,10.6768,84.349,84.282,12.41924198]
[1771001249100,11.78730507,84.349,84.27,12.41924198]
[1771001249693,11.78730507,84.349,84.285,12.41924198]
[1771001250294,10.6778,84.342,84.287,10.6846]
[1771001250494,11.78730507,84.349,84.285,12.41924198]
[1771001251099,10.6784,84.337,84.285,12.41924198]
[1771001251306,11.78730507,84.349,84.285,12.41924198]
[1771001251707,10.6792,84.331,84.285,12.41924198]
[1771001255004,11.98777133,84.329,84.253,10.68044012]
[1771001255308,11.98777133,84.329,84.269,11.72498595]
[1771001256809,10.6812,84.315,84.269,11.72498595]
[1771001257802,10.6823,84.307,84.269,11.72498595]
[1771001258004,8.66736452,84.33,84.269,11.72498595]
[1771001258309,11.56772594,84.332,84.269,11.72498595]
[1771001258612,11.56772594,84.332,84.27,11.68779289]
[1771001258814,8.66736452,84.33,84.27,11.68779289]
[1771001259015,10.6809,84.317,84.27,11.68779289]
[1771001259214,11.56772594,84.329,84.27,11.68779289]
[1771001260115,10.6823,84.307,84.27,11.68779289]
[1771001260310,11.56772594,84.329,84.27,11.68779289]
[1771001260511,10.6821,84.308,84.27,11.68779289]
[1771001262108,10.6811,84.316,84.27,11.68779289]
[1771001262307,11.56772594,84.329,84.27,11.68779289]
[1771001263623,11.56772594,84.329,84.25,11.68779289]
[1771001263920,10.6832,84.299,84.25,11.68779289]
[1771001264419,8.66736452,84.33,84.25,11.68779289]
[1771001264420,10.6841,84.292,84.25,11.68779289]
[1771001265012,10.685,84.285,84.25,11.68779289]
[1771001265618,10.685,84.285,84.214,3.7230335]
[1771001265619,10.6861,84.276,84.215,11.68779289]
[1771001266525,10.6852,84.283,84.241,22.37829289]
[1771001266822,11.56772594,84.295,84.241,11.68779289]
[1771001267321,11.56772594,84.295,84.249,11.68779289]
[1771001267521,20.23509046,84.31,84.249,11.68779289]
[1771001267915,10.6828,84.303,84.252,11.68779289]
[1771001268519,10.6846,84.288,84.252,11.68779289]
[1771001268716,10.6846,84.288,84.216,11.68779289]
[1771001269311,10.6835,84.297,84.242,11.68779289]
[1771001269518,11.56772594,84.317,84.242,11.68779289]
[1771001270626,11.56772594,84.317,84.266,22.37499289]
[1771001270627,10.6822,84.307,84.266,22.37499289]
[1771001271122,10.6822,84.307,84.267,11.68779289]
[1771001271324,10.681,84.317,84.272,11.68779289]
[1771001271823,11.56772594,84.332,84.272,11.68779289]
[1771001272818,10.6808,84.318,84.275,22.37389289]
[1771001273122,10.6808,84.318,84.276,11.68779289]
[1771001274324,10.6808,84.318,84.25,8.66736452]
[1771001274325,11.56772594,84.378,84.278,11.68779289]
[1771001274627,11.56772594,84.359,84.291,11.68779289]
[1771001274817,11.56772594,84.379,84.291,11.68779289]
[1771001275020,3.24062298,84.37,84.321,11.68779289]
[1771001275420,94.56,84.408,84.29,94.56]
[1771001275421,3.24062298,84.38,84.331,11.68779289]
[1771001276821,10.6723,84.385,84.331,11.68779289]
[1771001277027,11.56772594,84.384,84.331,11.68779289]
[1771001277526,10.671,84.396,84.333,11.68779289]
[1771001277727,11.56772594,84.395,84.333,11.68779289]
[1771001278828,10.6716,84.391,84.335,10.6786]
[1771001279030,11.56772594,84.39,84.336,11.68779289]
[1771001280832,10.6719,84.388,84.336,11.68779289]
[1771001281034,11.08587617,84.387,84.336,11.68779289]
[1771001281528,8.67598283,84.4,84.336,11.68779289]
[1771001281529,21.75897617,84.379,84.336,11.68779289]
[1771001282434,10.6719,84.389,84.336,11.68779289]
[1771001283732,11.08587617,84.386,84.336,11.68779289]
[1771001284431,11.08587617,84.381,84.336,11.68779289]
[1771001284735,8.67598283,84.4,84.336,11.68779289]
[1771001284736,11.08587617,84.396,84.336,11.68779289]
[1771001284924,11.08587617,84.394,84.336,11.68779289]
[1771001286033,8.67598283,84.4,84.336,11.68779289]
[1771001286034,11.08587617,84.384,84.336,11.68779289]
[1771001286833,11.08587617,84.384,84.336,22.36619289]
[1771001287741,11.08587617,84.38,84.328,10.66271317]
[1771001288742,11.08587617,84.378,84.328,10.66271317]
[1771001289034,11.08587617,84.378,84.292,10.61124622]
[1771001289333,10.675,84.364,84.313,10.66271317]
[1771001289540,11.08587617,84.378,84.313,10.66271317]
[1771001290534,11.08587617,84.378,84.329,10.6793]
[1771001290741,11.08587617,84.378,84.33,10.66271317]
[1771001291339,11.08587617,84.367,84.301,10.66271317]
[1771001292038,10.6786,84.336,84.301,10.66271317]
[1771001292232,10.6786,84.336,84.286,10.66271317]
[1771001292433,11.08587617,84.345,84.286,10.66271317]
[1771001292633,11.08587617,84.369,84.286,10.66271317]
[1771001293238,11.08587617,84.369,84.296,10.66271317]
[1771001293432,94.56,84.382,84.296,10.66271317]
[1771001293433,11.08587617,84.349,84.296,10.66271317]
[1771001294541,10.6778,84.342,84.297,10.6834]
[1771001294840,11.08587617,84.341,84.284,10.66271317]
[1771001295849,10.679,84.332,84.284,21.34781317]
[1771001296543,10.679,84.332,84.285,10.66271317]
[1771001296743,11.08587617,84.328,84.283,467.92920637]
[1771001296935,11.08587617,84.328,84.24,8.67717098]
[1771001296936,11.08587617,84.309,84.256,10.66271317]
[1771001297338,10.6841,84.292,84.256,10.66271317]
[1771001297734,10.6841,84.292,84.241,10.66271317]
[1771001298341,21.3563,84.339,84.224,10.66271317]
[1771001298342,11.08587617,84.281,84.224,10.66271317]
[1771001298836,10.6856,84.28,84.226,10.66271317]
[1771001299040,11.08587617,84.28,84.226,10.66271317]
[1771001299341,11.08587617,84.28,84.174,21.398]
[1771001299342,11.08587617,84.28,84.211,10.66271317]
[1771001299542,10.688,84.261,84.211,10.66271317]
[1771001299947,11.08587617,84.265,84.211,10.66271317]
[1771001300447,10.6891,84.253,84.211,10.66271317]
[1771001300642,10.6891,84.253,84.196,10.66271317]
[1771001300957,11.08587617,84.249,84.214,3.35e-05]
[1771001301141,10.6905,84.241,84.214,3.35e-05]
[1771001301849,11.08587617,84.249,84.214,3.35e-05]
[1771001301850,10.6917,84.232,84.214,3.35e-05]
[1771001302238,10.6917,84.232,84.181,10.66271317]
[1771001302945,10.6898,84.248,84.191,10.66271317]
[1771001303151,11.08587617,84.265,84.191,10.66271317]
[1771001303341,11.08587617,84.239,84.174,10.66271317]
[1771001303747,10.6934,84.219,84.174,10.66271317]
[1771001304247,10.6922,84.228,84.174,10.66271317]
[1771001304455,11.08587617,84.239,84.174,10.66271317]
[1771001304955,10.6921,84.229,84.178,10.66271317]
[1771001305455,11.08587617,84.256,84.178,10.66271317]
[1771001306046,10.6893,84.251,84.197,10.66271317]
[1771001307049,10.6905,84.242,84.197,10.66271317]
[1771001307245,11.08587617,84.259,84.197,10.66271317]
[1771001307451,21.77617617,84.243,84.171,10.66271317]
[1771001307649,11.08587617,84.242,84.171,10.66271317]
[1771001307849,11.08587617,84.259,84.171,10.66271317]
[1771001308152,11.08587617,84.239,84.167,10.66271317]
[1771001308658,21.77807617,84.229,84.17,10.66271317]
[1771001310054,11.04345237,84.223,84.17,10.66271317]
[1771001311353,11.04345237,84.223,84.174,10.6989]
[1771001311553,9.84140669,84.239,84.175,9.99586992]
[1771001312350,9.84140669,84.226,84.175,9.99586992]
[1771001312553,9.84140669,84.226,84.165,10.7001]
[1771001312752,9.84140669,84.219,84.159,9.99586992]
[1771001313058,10.694,84.214,84.16,10.7008]
[1771001313450,20.53640669,84.206,84.159,9.99586992]
[1771001313759,9.84140669,84.205,84.159,9.99586992]
[1771001314053,9.84140669,84.205,84.11,94.58]
[1771001314054,8.67717098,84.22,84.16,9.99586992]
[1771001314248,9.84140669,84.221,84.16,9.99586992]
[1771001314657,9.84140669,84.221,84.176,9.99586992]
[1771001314855,9.84140669,84.238,84.176,9.99586992]
[1771001315451,10.6914,84.235,84.176,9.99586992]
[1771001315658,8.67717098,84.24,84.176,9.99586992]
[1771001315659,9.84140669,84.234,84.176,9.99586992]
[1771001315852,9.84140669,84.234,84.159,9.99586992]
[1771001316058,8.67717098,84.22,84.159,9.99586992]
[1771001316248,10.6946,84.21,84.159,9.99586992]
[1771001316450,9.84140669,84.209,84.159,9.99586992]
[1771001317954,9.36053426,84.203,84.131,9.86955307]
[1771001318554,8.67717098,84.24,84.131,9.86955307]
[1771001318555,9.36053426,84.199,84.131,9.86955307]
[1771001319655,10.6978,84.184,84.131,9.86955307]
[1771001319856,9.36053426,84.183,84.131,9.86955307]
[1771001321958,10.6982,84.181,84.134,10.704]
[1771001322155,9.36053426,84.183,84.121,9.86955307]
[1771001322558,10.6991,84.174,84.127,9.86955307]
[1771001322759,9.36053426,84.183,84.127,9.86955307]
[1771001323158,9.36053426,84.199,84.129,9.86955307]
[1771001323654,9.36053426,84.199,84.11,8.67717098]
[1771001323655,10.6968,84.192,84.143,9.86955307]
[1771001324254,9.36053426,84.191,84.143,9.86955307]
[1771001325458,10.6982,84.181,84.125,9.86955307]
[1771001325860,9.36053426,84.191,84.125,9.86955307]
[1771001326363,9.36053426,84.191,84.128,9.86955307]
[1771001326965,10.6989,84.176,84.128,9.86955307]
[1771001327763,10.6997,84.17,84.128,9.86955307]
[1771001328154,9.36053426,84.191,84.128,9.86955307]
[1771001328564,10.6976,84.185,84.134,10.704]
[1771001328865,10.6976,84.185,84.135,9.86955307]
[1771001329467,10.6986,84.178,84.135,9.86955307]
[1771001329858,10.6976,84.186,84.136,20.57335307]
[1771001330057,9.36053426,84.206,84.137,9.86955307]
[1771001330559,10.6974,84.188,84.142,9.86955307]
[1771001330851,8.67717098,84.21,84.142,9.86955307]
[1771001331061,10.6953,84.204,84.152,9.86955307]
[1771001331463,9.36053426,84.221,84.152,9.86955307]
[1771001332062,9.36053426,84.238,84.169,9.86955307]
[1771001333066,8.67717098,84.24,84.169,9.86955307]
[1771001333067,10.693,84.222,84.17,9.86955307]
[1771001333368,9.36053426,84.224,84.17,9.86955307]
[1771001333765,10.6934,84.219,84.171,10.6994]
[1771001333962,9.36053426,84.224,84.17,9.86955307]
[1771001334163,8.95179491,84.219,84.141,9.86955307]
[1771001334858,8.95179491,84.219,84.16,10.7008]
[1771001335054,8.95179491,84.219,84.155,9.86955307]
[1771001335461,10.6928,84.224,84.173,9.86955307]
[1771001335864,10.6928,84.224,84.175,10.6988]
[1771001337258,10.6937,84.216,84.173,9.86955307]
[1771001337865,7.93779719,84.22,84.174,10.699]
[1771001337866,10.6937,84.217,84.174,10.699]
[1771001338463,7.93779719,84.22,84.174,10.699]
[1771001338667,7.93779719,84.22,84.18,10.6982]
[1771001339458,10.6935,84.218,84.173,9.86955307]
[1771001341064,7.93779719,84.22,84.142,8.91294747]
[1771001341372,7.80109,84.219,84.142,8.91294747]
[1771001341768,10.6963,84.196,84.145,10.7027]
[1771001342073,16.43902758,84.22,84.142,8.91294747]
[1771001342371,10.6942,84.213,84.171,10.6994]
[1771001342766,7.7618566,84.22,84.17,8.91294747]
[1771001342965,7.7618566,84.22,84.153,19.61454747]
[1771001342966,10.696,84.198,84.153,19.61454747]
[1771001343162,10.696,84.198,84.154,8.91294747]
[1771001343368,7.60028969,84.219,84.154,8.91294747]
[1771001344171,10.696,84.199,84.155,8.91294747]
[1771001344374,7.60028969,84.219,84.155,8.91294747]
[1771001345770,10.695,84.206,84.158,8.91294747]
[1771001346175,7.60028969,84.219,84.158,8.91294747]
[1771001347571,7.60028969,84.219,84.145,8.91294747]
[1771001348465,10.6972,84.189,84.147,8.91294747]
[1771001348673,7.36967627,84.224,84.147,8.91294747]
[1771001348867,7.36967627,84.224,84.154,8.91294747]
[1771001349072,9.37109381,84.219,84.155,8.91294747]
[1771001349271,9.37109381,84.205,84.155,8.91294747]
[1771001350076,10.697,84.191,84.155,8.91294747]
[1771001350681,10.6959,84.199,84.155,19.61434747]
[1771001351183,10.6949,84.207,84.158,8.91294747]
[1771001351379,9.37109381,84.222,84.158,8.91294747]
[1771001351580,9.37109381,84.222,84.159,8.91294747]
[1771001352282,9.37109381,84.222,84.168,8.91294747]
[1771001352882,10.6931,84.221,84.181,10.6981]
[1771001353268,9.37109381,84.222,84.181,10.6981]
[1771001353476,8.70903437,84.24,84.186,8.91294747]
[1771001353477,10.6922,84.228,84.186,8.91294747]
[1771001353674,9.37109381,84.237,84.186,8.91294747]
[1771001353879,97.66,84.251,84.186,8.91294747]
[1771001354079,9.37109381,84.25,84.188,8.91294747]
[1771001354376,9.37109381,84.239,84.177,19.73023813]
[1771001354579,10.6915,84.234,84.195,10.6962]
[1771001354776,10.6915,84.234,84.179,8.91294747]
[1771001355180,9.37109381,84.239,84.179,19.61124747]
[1771001356077,9.37109381,84.239,84.179,8.91294747]
[1771001356580,8.70903437,84.24,84.154,34.22031033]
[1771001356581,9.37109381,84.25,84.181,8.91294747]
[1771001357186,9.37109381,84.25,84.196,8.91294747]
[1771001358685,9.37109381,84.25,84.207,10.6947]
[1771001359080,9.37109381,84.25,84.207,10.6948]
[1771001359484,10.6906,84.241,84.196,8.91294747]
[1771001359880,9.37109381,84.24,84.196,8.91294747]
[1771001360080,9.37109381,84.236,84.176,8.91294747]
[1771001360782,10.6914,84.235,84.176,8.91294747]
[1771001360983,9.37109381,84.236,84.176,8.91294747]
[1771001361688,9.37109381,84.234,84.188,10.6972]
[1771001361882,9.37109381,84.234,84.176,8.91294747]
[1771001362280,10.6926,84.225,84.183,10.6978]
[1771001362685,9.37109381,84.234,84.176,8.91294747]
[1771001362989,9.37109381,84.259,84.176,8.91294747]
[1771001363286,9.37109381,84.259,84.174,10.81729066]
[1771001363287,9.37109381,84.259,84.199,8.91294747]
[1771001364681,9.37109381,84.243,84.18,8.91294747]
[1771001365788,9.37109381,84.243,84.198,10.6959]
[1771001366489,10.6893,84.251,84.204,10.6951]
[1771001366779,10.6893,84.251,84.197,8.91294747]
[1771001367080,9.37109381,84.258,84.17,8.70903437]
[1771001367081,9.37109381,84.277,84.221,8.91294747]
[1771001367786,10.6878,84.263,84.221,8.91294747]
[1771001367979,9.37109381,84.277,84.221,8.91294747]
[1771001368774,10.6886,84.257,84.221,8.91294747]
[1771001369382,10.6886,84.257,84.212,10.6942]
[1771001369589,10.6897,84.248,84.206,8.91294747]
[1771001370882,10.6887,84.256,84.208,8.83105309]
[1771001372677,10.6895,84.25,84.211,10.6942]
[1771001373080,9.37109381,84.262,84.212,8.83105309]
[1771001375284,10.6872,84.268,84.226,8.83105309]
[1771001375985,10.688,84.262,84.226,8.83105309]
[1771001376490,10.688,84.262,84.221,10.693]
[1771001376889,8.9502608,84.264,84.225,10.6925]
[1771001377092,8.9502608,84.264,84.211,8.83105309]
[1771001377584,8.9502608,84.264,84.224,10.6926]
[1771001378781,8.40447681,84.261,84.215,10.6938]
[1771001379789,8.40447681,84.259,84.215,10.6938]
[1771001380384,10.6895,84.249,84.211,8.83105309]
[1771001380990,8.40447681,84.259,84.211,8.83105309]
[1771001381402,8.40447681,84.259,84.219,10.6932]
[1771001382802,10.6885,84.258,84.219,10.6932]
[1771001383307,10.6889,84.254,84.212,10.6941]
[1771001383509,10.6889,84.254,84.211,8.83105309]
[1771001384108,8.40447681,84.257,84.218,10.6933]
[1771001385100,8.40447681,84.257,84.211,19.52535309]
[1771001385101,10.6892,84.252,84.211,19.52535309]
[1771001385308,8.40447681,84.251,84.211,10.6943]
[1771001385806,8.40447681,84.251,84.197,8.34453072]
[1771001386200,8.40447681,84.239,84.197,8.34453072]
[1771001387712,10.6911,84.237,84.197,8.34453072]
[1771001388611,8.40447681,84.231,84.195,10.6963]
[1771001388805,8.40447681,84.249,84.203,8.34453072]